[Event "*** Titled Tuesday Blitz"]
[Site "Chess.com"]
[Date "2021.02.02"]
[Round "1"]
[White "DenisQ"]
[Black "Pikachess999"]
[Result "1-0"]
[WhiteElo "2662"]
[BlackElo "2355"]
[TimeControl "180+1"]
[EndTime "10:01:47 PST"]
[Termination "DenisQ won by resignation"]

1. Nf3 {[%clk 0:02:58.8]} 1... d5 {[%clk 0:02:59.7]} 2. g3 {[%clk 0:02:56.2]}
2... g6 {[%clk 0:02:59.6]} 3. Bg2 {[%clk 0:02:56]} 3... Bg7 {[%clk 0:03:00]} 4.
O-O {[%clk 0:02:56.4]} 4... e5 {[%clk 0:03:00.5]} 5. d3 {[%clk 0:02:55]} 5...
Ne7 {[%clk 0:03:01]} 6. c4 {[%clk 0:02:53.7]} 6... O-O {[%clk 0:03:00.8]} 7.
cxd5 {[%clk 0:02:53.4]} 7... Nxd5 {[%clk 0:03:01.7]} 8. Nc3 {[%clk 0:02:52.9]}
8... Be6 {[%clk 0:02:55.6]} 9. Ng5 {[%clk 0:02:49.3]} 9... Nxc3 {[%clk
0:02:55.4]} 10. Nxe6 {[%clk 0:02:38.5]} 10... Nxd1 {[%clk 0:02:55.3]} 11. Nxd8
{[%clk 0:02:38]} 11... Rxd8 {[%clk 0:02:42.1]} 12. Bxb7 {[%clk 0:02:34.8]} 12...
Nd7 {[%clk 0:02:41.4]} 13. Bxa8 {[%clk 0:02:33.4]} 13... Nxf2 {[%clk 0:02:41.2]}
14. Bf3 {[%clk 0:02:21.7]} 1-0

[Event "*** Titled Tuesday Blitz"]
[Site "Chess.com"]
[Date "2021.02.02"]
[Round "1"]
[White "1977Ivan"]
[Black "MF1966Idrisov"]
[Result "1-0"]
[WhiteElo "2704"]
[BlackElo "2379"]
[TimeControl "180+1"]
[EndTime "10:02:26 PST"]
[Termination "1977Ivan won by resignation"]

1. d4 {[%clk 0:03:00.9]} 1... d6 {[%clk 0:02:58.8]} 2. e4 {[%clk 0:02:59.8]}
2... e5 {[%clk 0:02:58.7]} 3. Nf3 {[%clk 0:02:57.9]} 3... Bg4 {[%clk 0:02:57.6]}
4. dxe5 {[%clk 0:02:56.8]} 4... Bxf3 {[%clk 0:02:57.1]} 5. Qxf3 {[%clk
0:02:57.7]} 5... dxe5 {[%clk 0:02:57.1]} 6. Bc4 {[%clk 0:02:57.5]} 6... Qe7
{[%clk 0:02:57.1]} 7. Qb3 {[%clk 0:02:53.8]} 7... c6 {[%clk 0:02:56]} 8. Nc3
{[%clk 0:02:53.3]} 8... Nf6 {[%clk 0:02:45.6]} 9. Bg5 {[%clk 0:02:48.9]} 9... h6
{[%clk 0:02:39.9]} 10. Bxf6 {[%clk 0:02:47.3]} 10... gxf6 {[%clk 0:02:40]} 11.
O-O-O {[%clk 0:02:45.7]} 11... b6 {[%clk 0:02:40.2]} 12. Nb5 {[%clk 0:02:33.1]}
12... cxb5 {[%clk 0:02:15.2]} 13. Bxb5+ {[%clk 0:02:32.1]} 13... Nd7 {[%clk
0:02:15.3]} 14. Bxd7+ {[%clk 0:02:24.7]} 14... Qxd7 {[%clk 0:02:15.1]} 15. Rxd7
{[%clk 0:02:25.6]} 15... Kxd7 {[%clk 0:02:15.4]} 16. Qxf7+ {[%clk 0:02:25.7]}
16... Kc6 {[%clk 0:02:02.4]} 17. Qd5+ {[%clk 0:02:23.3]} 1-0

[Event "*** Titled Tuesday Blitz"]
[Site "Chess.com"]
[Date "2021.02.02"]
[Round "1"]
[White "Kildepiotr"]
[Black "BJthechessgod"]
[Result "1-0"]
[WhiteElo "2605"]
[BlackElo "2306"]
[TimeControl "180+1"]
[EndTime "10:02:51 PST"]
[Termination "Kildepiotr won by resignation"]

1. Nf3 {[%clk 0:03:00.7]} 1... c5 {[%clk 0:02:54.1]} 2. g3 {[%clk 0:03:00.7]}
2... Nc6 {[%clk 0:02:54.2]} 3. Bg2 {[%clk 0:03:01.2]} 3... g6 {[%clk 0:02:54.6]}
4. O-O {[%clk 0:03:02.1]} 4... Bg7 {[%clk 0:02:55]} 5. c3 {[%clk 0:03:02.9]}
5... d6 {[%clk 0:02:55.5]} 6. d4 {[%clk 0:03:03.1]} 6... cxd4 {[%clk 0:02:55.8]}
7. cxd4 {[%clk 0:03:04]} 7... Nf6 {[%clk 0:02:56]} 8. Nc3 {[%clk 0:03:04.5]}
8... O-O {[%clk 0:02:56.1]} 9. e4 {[%clk 0:03:05]} 9... d5 {[%clk 0:02:50.2]}
10. e5 {[%clk 0:02:54]} 10... Ne4 {[%clk 0:02:47.6]} 11. Be3 {[%clk 0:02:52.7]}
11... Nxc3 {[%clk 0:02:43.9]} 12. bxc3 {[%clk 0:02:52.5]} 12... Na5 {[%clk
0:02:43.6]} 13. Nd2 {[%clk 0:02:52.1]} 13... Be6 {[%clk 0:02:43]} 14. Rb1 {[%clk
0:02:50.6]} 14... Rc8 {[%clk 0:02:43.1]} 15. Qc2 {[%clk 0:02:46.3]} 15... Bf5
{[%clk 0:02:42]} 16. Qa4 {[%clk 0:02:42.2]} 16... Bxb1 {[%clk 0:02:41]} 17. Rxb1
{[%clk 0:02:43.1]} 17... Rxc3 {[%clk 0:02:37.2]} 18. Rb5 {[%clk 0:02:42.6]}
18... Nc4 {[%clk 0:02:36.2]} 19. Rxd5 {[%clk 0:02:41.7]} 19... Qc7 {[%clk
0:01:54.7]} 20. Rc5 {[%clk 0:02:37.9]} 20... Rc1+ {[%clk 0:01:43.3]} 21. Nf1
{[%clk 0:02:32.5]} 21... Qb8 {[%clk 0:01:41.4]} 22. Bxc1 {[%clk 0:02:31.7]}
22... Rc8 {[%clk 0:01:36.5]} 23. Rxc4 {[%clk 0:02:30.4]} 1-0

[Event "*** Titled Tuesday Blitz"]
[Site "Chess.com"]
[Date "2021.02.02"]
[Round "1"]
[White "realmadridtv"]
[Black "SaraciNderim"]
[Result "0-1"]
[WhiteElo "2419"]
[BlackElo "2816"]
[TimeControl "180+1"]
[EndTime "10:03:16 PST"]
[Termination "SaraciNderim won by resignation"]

1. e4 {[%clk 0:03:00.3]} 1... e5 {[%clk 0:02:57.3]} 2. Nf3 {[%clk 0:03:00.3]}
2... Nc6 {[%clk 0:02:57.1]} 3. Bb5 {[%clk 0:03:00.2]} 3... a6 {[%clk 0:02:56.8]}
4. Ba4 {[%clk 0:03:00.6]} 4... g6 {[%clk 0:02:56.6]} 5. Nc3 {[%clk 0:02:52.9]}
5... Bg7 {[%clk 0:02:54.6]} 6. d4 {[%clk 0:02:48.3]} 6... Nxd4 {[%clk
0:02:48.5]} 7. Nxd4 {[%clk 0:02:47]} 7... exd4 {[%clk 0:02:48.6]} 8. Ne2 {[%clk
0:02:46.4]} 8... c5 {[%clk 0:02:44.1]} 9. c3 {[%clk 0:02:45.8]} 9... b5 {[%clk
0:02:43.1]} 10. Bc2 {[%clk 0:02:44.5]} 10... dxc3 {[%clk 0:02:38.1]} 11. Nxc3
{[%clk 0:02:44.6]} 11... Bb7 {[%clk 0:02:37.7]} 12. O-O {[%clk 0:02:43.6]} 12...
Ne7 {[%clk 0:02:30.5]} 13. Bf4 {[%clk 0:02:36.2]} 13... O-O {[%clk 0:02:24.8]}
14. Qd2 {[%clk 0:02:32.7]} 14... d5 {[%clk 0:02:20.7]} 15. exd5 {[%clk
0:02:25.3]} 15... Nxd5 {[%clk 0:02:19]} 16. Nxd5 {[%clk 0:02:15.5]} 16... Qxd5
{[%clk 0:02:16.9]} 17. Qxd5 {[%clk 0:02:04]} 17... Bxd5 {[%clk 0:02:17.8]} 18.
Rad1 {[%clk 0:01:59.7]} 18... Bxa2 {[%clk 0:02:12.6]} 19. b3 {[%clk 0:01:47.6]}
19... c4 {[%clk 0:02:10.2]} 20. b4 {[%clk 0:01:47.3]} 20... Bb3 {[%clk
0:02:07.7]} 21. Bxb3 {[%clk 0:01:45.3]} 21... cxb3 {[%clk 0:02:08.6]} 22. Bd6
{[%clk 0:01:45.8]} 22... Rfd8 {[%clk 0:02:06.7]} 0-1

[Event "*** Titled Tuesday Blitz"]
[Site "Chess.com"]
[Date "2021.02.02"]
[Round "1"]
[White "Leo_C"]
[Black "alexrustemov"]
[Result "0-1"]
[WhiteElo "2402"]
[BlackElo "2771"]
[TimeControl "180+1"]
[EndTime "10:03:23 PST"]
[Termination "alexrustemov won by resignation"]

1. d4 {[%clk 0:02:59.6]} 1... d5 {[%clk 0:02:59.2]} 2. c4 {[%clk 0:02:54.8]}
2... dxc4 {[%clk 0:02:59.3]} 3. e4 {[%clk 0:02:54.4]} 3... Nf6 {[%clk
0:02:58.5]} 4. e5 {[%clk 0:02:53.8]} 4... Nd5 {[%clk 0:02:59]} 5. Bxc4 {[%clk
0:02:54]} 5... Nb6 {[%clk 0:02:59.6]} 6. Bd3 {[%clk 0:02:54]} 6... Nc6 {[%clk
0:03:00.3]} 7. Be3 {[%clk 0:02:53.4]} 7... Be6 {[%clk 0:03:00.5]} 8. Nc3 {[%clk
0:02:49.6]} 8... Qd7 {[%clk 0:02:59.4]} 9. Nge2 {[%clk 0:02:46.9]} 9... Bc4
{[%clk 0:02:58.8]} 10. Be4 {[%clk 0:02:42]} 10... e6 {[%clk 0:02:56.9]} 11. O-O
{[%clk 0:02:39.5]} 11... O-O-O {[%clk 0:02:54.4]} 12. b3 {[%clk 0:02:35.7]}
12... Ba6 {[%clk 0:02:50.6]} 13. a4 {[%clk 0:02:26.1]} 13... Bb4 {[%clk
0:02:44.7]} 14. Nb5 {[%clk 0:02:24.9]} 14... Kb8 {[%clk 0:02:39.8]} 15. Rc1
{[%clk 0:02:21.9]} 15... Bxb5 {[%clk 0:02:35.8]} 16. axb5 {[%clk 0:02:21.2]}
16... Ne7 {[%clk 0:02:34.3]} 17. Qd3 {[%clk 0:02:05.5]} 17... Nbd5 {[%clk
0:02:30.1]} 18. Bg5 {[%clk 0:01:53.8]} 18... h6 {[%clk 0:02:26.8]} 19. Bd2
{[%clk 0:01:44.6]} 19... Bxd2 {[%clk 0:02:25]} 20. Qxd2 {[%clk 0:01:45.5]} 20...
Qxb5 {[%clk 0:02:25.1]} 21. Bd3 {[%clk 0:01:38.8]} 21... Qb4 {[%clk 0:02:22.7]}
22. Qa2 {[%clk 0:01:33.9]} 22... Qb6 {[%clk 0:02:19.6]} 23. Rc5 {[%clk
0:01:30.2]} 23... Nb4 {[%clk 0:02:18.9]} 24. Qb1 {[%clk 0:01:27.3]} 24... Nxd3
{[%clk 0:02:19.2]} 25. Qxd3 {[%clk 0:01:28.2]} 25... Qxc5 {[%clk 0:02:19.7]} 0-1

[Event "*** Titled Tuesday Blitz"]
[Site "Chess.com"]
[Date "2021.02.02"]
[Round "1"]
[White "maximnovik"]
[Black "glebus008"]
[Result "1-0"]
[WhiteElo "2565"]
[BlackElo "2255"]
[TimeControl "180+1"]
[EndTime "10:03:29 PST"]
[Termination "maximnovik won by resignation"]

1. c4 {[%clk 0:02:50.4]} 1... c6 {[%clk 0:02:57.3]} 2. Nf3 {[%clk 0:02:48]} 2...
d5 {[%clk 0:02:57.3]} 3. g3 {[%clk 0:02:48]} 3... Nf6 {[%clk 0:02:54.8]} 4. Bg2
{[%clk 0:02:48]} 4... e6 {[%clk 0:02:44.2]} 5. b3 {[%clk 0:02:46.8]} 5... Be7
{[%clk 0:02:43.1]} 6. O-O {[%clk 0:02:46.6]} 6... O-O {[%clk 0:02:43.5]} 7. Bb2
{[%clk 0:02:46.4]} 7... a5 {[%clk 0:02:41.1]} 8. d4 {[%clk 0:02:45]} 8... Nbd7
{[%clk 0:02:39]} 9. Nfd2 {[%clk 0:02:42.7]} 9... b6 {[%clk 0:02:29.1]} 10. e4
{[%clk 0:02:42.3]} 10... Bb7 {[%clk 0:02:28.4]} 11. Nc3 {[%clk 0:02:41.4]} 11...
Re8 {[%clk 0:02:22.6]} 12. e5 {[%clk 0:02:40]} 12... Ne4 {[%clk 0:02:19.1]} 13.
Ncxe4 {[%clk 0:02:38.2]} 13... dxe4 {[%clk 0:02:19.2]} 14. Nxe4 {[%clk
0:02:38.5]} 14... Qc7 {[%clk 0:02:16.3]} 15. Re1 {[%clk 0:02:31.6]} 15... c5
{[%clk 0:02:13]} 16. d5 {[%clk 0:02:28.8]} 16... exd5 {[%clk 0:02:02.6]} 17.
cxd5 {[%clk 0:02:27.7]} 17... Nxe5 {[%clk 0:02:00.4]} 18. d6 {[%clk 0:02:26.8]}
18... Bxd6 {[%clk 0:01:51.6]} 19. Qxd6 {[%clk 0:02:25.4]} 19... Qxd6 {[%clk
0:01:50.9]} 20. Nxd6 {[%clk 0:02:25.2]} 20... Bxg2 {[%clk 0:01:51.8]} 21. Kxg2
{[%clk 0:02:24]} 1-0

[Event "*** Titled Tuesday Blitz"]
[Site "Chess.com"]
[Date "2021.02.02"]
[Round "1"]
[White "FearNoEvil12"]
[Black "The_Machine04"]
[Result "0-1"]
[WhiteElo "2208"]
[BlackElo "2533"]
[TimeControl "180+1"]
[EndTime "10:03:40 PST"]
[Termination "The_Machine04 won by resignation"]

1. e4 {[%clk 0:03:00.9]} 1... d6 {[%clk 0:02:59.9]} 2. Nc3 {[%clk 0:02:59.4]}
2... Nf6 {[%clk 0:02:59.9]} 3. f4 {[%clk 0:02:59.8]} 3... c5 {[%clk 0:02:58.6]}
4. Nf3 {[%clk 0:03:00]} 4... Nc6 {[%clk 0:02:58.6]} 5. Bc4 {[%clk 0:03:00.4]}
5... g6 {[%clk 0:02:57.7]} 6. f5 {[%clk 0:02:59.4]} 6... Bg7 {[%clk 0:02:55.1]}
7. d3 {[%clk 0:02:59.8]} 7... gxf5 {[%clk 0:02:52.5]} 8. O-O {[%clk 0:02:58.7]}
8... fxe4 {[%clk 0:02:37.1]} 9. dxe4 {[%clk 0:02:58.5]} 9... Be6 {[%clk
0:02:26]} 10. Bxe6 {[%clk 0:02:56.2]} 10... fxe6 {[%clk 0:02:26.9]} 11. Ng5
{[%clk 0:02:55.9]} 11... Qd7 {[%clk 0:02:25.7]} 12. Rxf6 {[%clk 0:02:49.2]}
12... exf6 {[%clk 0:02:18.9]} 13. Qh5+ {[%clk 0:02:47.9]} 13... Kf8 {[%clk
0:02:13.8]} 14. Be3 {[%clk 0:02:31.1]} 14... fxg5 {[%clk 0:02:05.9]} 15. Rf1+
{[%clk 0:02:30.1]} 15... Kg8 {[%clk 0:02:05.5]} 16. Bxg5 {[%clk 0:02:27.8]}
16... Rf8 {[%clk 0:02:02.8]} 17. Rxf8+ {[%clk 0:02:18.3]} 17... Kxf8 {[%clk
0:02:00.9]} 18. Qg4 {[%clk 0:02:12.6]} 18... Ne5 {[%clk 0:01:58.2]} 19. Qh3
{[%clk 0:02:09.2]} 19... h6 {[%clk 0:01:54.8]} 20. Bh4 {[%clk 0:02:05.5]} 20...
Qf7 {[%clk 0:01:54]} 21. Nd5 {[%clk 0:01:54.5]} 21... exd5 {[%clk 0:01:48.8]}
22. Qc8+ {[%clk 0:01:52.5]} 22... Qe8 {[%clk 0:01:48.6]} 23. Qf5+ {[%clk
0:01:47.2]} 23... Kg8 {[%clk 0:01:46]} 24. exd5 {[%clk 0:01:44.6]} 24... Qg6
{[%clk 0:01:45.3]} 0-1

[Event "*** Titled Tuesday Blitz"]
[Site "Chess.com"]
[Date "2021.02.02"]
[Round "1"]
[White "onetowin"]
[Black "BairaKovanova"]
[Result "0-1"]
[WhiteElo "2001"]
[BlackElo "2492"]
[TimeControl "180+1"]
[EndTime "10:03:55 PST"]
[Termination "BairaKovanova won by resignation"]

1. d4 {[%clk 0:02:56.4]} 1... Nf6 {[%clk 0:02:59]} 2. Nc3 {[%clk 0:02:56]} 2...
d5 {[%clk 0:02:58.1]} 3. Bf4 {[%clk 0:02:55.2]} 3... Bf5 {[%clk 0:02:42.2]} 4.
e3 {[%clk 0:02:55.2]} 4... c6 {[%clk 0:02:40.1]} 5. f3 {[%clk 0:02:55.1]} 5...
e6 {[%clk 0:02:35.2]} 6. g4 {[%clk 0:02:55.4]} 6... Bg6 {[%clk 0:02:34.8]} 7. h4
{[%clk 0:02:55.9]} 7... h5 {[%clk 0:02:34.7]} 8. g5 {[%clk 0:02:55]} 8... Nfd7
{[%clk 0:02:34.8]} 9. Bd3 {[%clk 0:02:55]} 9... Bxd3 {[%clk 0:02:33.3]} 10. Qxd3
{[%clk 0:02:55.9]} 10... g6 {[%clk 0:02:29.1]} 11. Nge2 {[%clk 0:02:54.3]} 11...
Qe7 {[%clk 0:02:20]} 12. O-O-O {[%clk 0:02:42.7]} 12... Bg7 {[%clk 0:02:19.5]}
13. e4 {[%clk 0:02:39.2]} 13... Na6 {[%clk 0:02:16.3]} 14. a3 {[%clk 0:02:27.7]}
14... O-O {[%clk 0:02:14.8]} 15. Be3 {[%clk 0:02:13.4]} 15... Rac8 {[%clk
0:01:53.5]} 16. e5 {[%clk 0:01:58.8]} 16... c5 {[%clk 0:01:52.1]} 17. Nb5 {[%clk
0:01:56.8]} 17... cxd4 {[%clk 0:01:40.8]} 18. Bxd4 {[%clk 0:01:50.1]} 18... Nxe5
{[%clk 0:01:37.8]} 19. Bxe5 {[%clk 0:01:43.1]} 19... Bxe5 {[%clk 0:01:37.4]} 20.
f4 {[%clk 0:01:43]} 20... Bg7 {[%clk 0:01:36.9]} 21. Ng3 {[%clk 0:01:42.1]}
21... Nc5 {[%clk 0:01:35.2]} 22. Qd2 {[%clk 0:01:39.7]} 22... Nb3+ {[%clk
0:01:34.7]} 0-1

[Event "*** Titled Tuesday Blitz"]
[Site "Chess.com"]
[Date "2021.02.02"]
[Round "1"]
[White "MumLookatMeNow"]
[Black "lachesisQ"]
[Result "0-1"]
[WhiteElo "2476"]
[BlackElo "3074"]
[TimeControl "180+1"]
[EndTime "10:04:02 PST"]
[Termination "lachesisQ won by resignation"]

1. e4 {[%clk 0:03:00.9]} 1... c6 {[%clk 0:02:56.7]} 2. d4 {[%clk 0:03:00.7]}
2... d5 {[%clk 0:02:57.6]} 3. e5 {[%clk 0:03:01.1]} 3... c5 {[%clk 0:02:57.5]}
4. dxc5 {[%clk 0:03:00.8]} 4... e6 {[%clk 0:02:57.9]} 5. a3 {[%clk 0:03:00.9]}
5... Bxc5 {[%clk 0:02:57.2]} 6. Nf3 {[%clk 0:03:01.3]} 6... Ne7 {[%clk
0:02:56.2]} 7. b4 {[%clk 0:03:01]} 7... Bb6 {[%clk 0:02:56.3]} 8. Bd3 {[%clk
0:03:01.5]} 8... Ng6 {[%clk 0:02:56.3]} 9. O-O {[%clk 0:03:00.3]} 9... O-O
{[%clk 0:02:56.3]} 10. Re1 {[%clk 0:02:59.3]} 10... a5 {[%clk 0:02:51.4]} 11.
Bb2 {[%clk 0:02:55.1]} 11... axb4 {[%clk 0:02:51]} 12. axb4 {[%clk 0:02:56]}
12... Rxa1 {[%clk 0:02:51.8]} 13. Bxa1 {[%clk 0:02:56.9]} 13... Nc6 {[%clk
0:02:52.7]} 14. b5 {[%clk 0:02:42.2]} 14... Na5 {[%clk 0:02:47.1]} 15. Nbd2
{[%clk 0:02:37.9]} 15... Qc7 {[%clk 0:02:46.3]} 16. Ng5 {[%clk 0:01:59.9]} 16...
h6 {[%clk 0:02:41.3]} 17. Qh5 {[%clk 0:01:59.1]} 17... Nf4 {[%clk 0:02:16.1]}
18. Qh4 {[%clk 0:00:56.6]} 18... Nxd3 {[%clk 0:02:14.6]} 19. cxd3 {[%clk
0:00:56.9]} 19... hxg5 {[%clk 0:02:13.9]} 20. Qxg5 {[%clk 0:00:57]} 20... Qc2
{[%clk 0:02:12.2]} 0-1

[Event "*** Titled Tuesday Blitz"]
[Site "Chess.com"]
[Date "2021.02.02"]
[Round "1"]
[White "Kostukov_Alex"]
[Black "Legendinunknown"]
[Result "0-1"]
[WhiteElo "2278"]
[BlackElo "2585"]
[TimeControl "180+1"]
[EndTime "10:04:03 PST"]
[Termination "Legendinunknown won by resignation"]

1. g3 {[%clk 0:02:55.5]} 1... Nf6 {[%clk 0:02:57]} 2. Bg2 {[%clk 0:02:54.7]}
2... g6 {[%clk 0:02:56.8]} 3. c4 {[%clk 0:02:55.3]} 3... Bg7 {[%clk 0:02:56.8]}
4. Nf3 {[%clk 0:02:56.2]} 4... O-O {[%clk 0:02:57]} 5. O-O {[%clk 0:02:57.1]}
5... d6 {[%clk 0:02:57.3]} 6. d4 {[%clk 0:02:57.3]} 6... Nbd7 {[%clk 0:02:56.8]}
7. Nc3 {[%clk 0:02:57.9]} 7... e5 {[%clk 0:02:56.8]} 8. h3 {[%clk 0:02:57.6]}
8... Re8 {[%clk 0:02:54.5]} 9. e4 {[%clk 0:02:57.6]} 9... exd4 {[%clk
0:02:54.1]} 10. Nxd4 {[%clk 0:02:57.7]} 10... Nc5 {[%clk 0:02:52.2]} 11. Re1
{[%clk 0:02:54.5]} 11... Bd7 {[%clk 0:02:51.8]} 12. Nb3 {[%clk 0:02:54.1]} 12...
Nxb3 {[%clk 0:02:46.8]} 13. axb3 {[%clk 0:02:55]} 13... Qc8 {[%clk 0:02:46.9]}
14. Kh2 {[%clk 0:02:51.3]} 14... Re5 {[%clk 0:02:46.5]} 15. h4 {[%clk
0:02:24.5]} 15... Ng4+ {[%clk 0:02:32.9]} 16. Kg1 {[%clk 0:02:23.1]} 16... f5
{[%clk 0:02:30]} 17. Bf4 {[%clk 0:01:50.3]} 17... Re8 {[%clk 0:02:26.6]} 18.
exf5 {[%clk 0:01:43]} 18... Rxe1+ {[%clk 0:02:16.2]} 19. Qxe1 {[%clk 0:01:42.4]}
19... Bxf5 {[%clk 0:02:16.7]} 20. Qd2 {[%clk 0:01:37.4]} 20... Qd7 {[%clk
0:02:09.7]} 21. Nd5 {[%clk 0:01:35.4]} 21... a6 {[%clk 0:02:00.4]} 22. Ne3
{[%clk 0:01:33.7]} 22... Nxe3 {[%clk 0:01:59.5]} 23. Bxe3 {[%clk 0:01:34]} 23...
c6 {[%clk 0:01:54.3]} 24. Rd1 {[%clk 0:01:30.2]} 24... Rd8 {[%clk 0:01:51.1]}
25. Bg5 {[%clk 0:01:28.8]} 25... Re8 {[%clk 0:01:50.9]} 26. Qxd6 {[%clk
0:01:27.3]} 26... Re1+ {[%clk 0:01:50.6]} 27. Kh2 {[%clk 0:01:25.1]} 27... Rxd1
{[%clk 0:01:49.9]} 0-1

[Event "*** Titled Tuesday Blitz"]
[Site "Chess.com"]
[Date "2021.02.02"]
[Round "1"]
[White "Ze-Pequeno"]
[Black "Squirlolz"]
[Result "1-0"]
[WhiteElo "2217"]
[BlackElo "2499"]
[TimeControl "180+1"]
[EndTime "10:04:09 PST"]
[Termination "Ze-Pequeno won by resignation"]

1. e4 {[%clk 0:02:57.6]} 1... c5 {[%clk 0:02:55.9]} 2. Nf3 {[%clk 0:02:57.3]}
2... a6 {[%clk 0:02:55.7]} 3. c3 {[%clk 0:02:57]} 3... e6 {[%clk 0:02:54.8]} 4.
d4 {[%clk 0:02:55.2]} 4... d5 {[%clk 0:02:55]} 5. e5 {[%clk 0:02:49.1]} 5... Bd7
{[%clk 0:02:55]} 6. Bd3 {[%clk 0:02:22.4]} 6... Bb5 {[%clk 0:02:54.9]} 7. Bc2
{[%clk 0:02:21.6]} 7... a5 {[%clk 0:02:44.2]} 8. Na3 {[%clk 0:02:19.7]} 8... Ba6
{[%clk 0:02:44.3]} 9. Ba4+ {[%clk 0:02:19.4]} 9... Nc6 {[%clk 0:02:44.1]} 10.
Nb5 {[%clk 0:02:18.7]} 10... Qb6 {[%clk 0:02:37.3]} 11. Qb3 {[%clk 0:02:17.2]}
11... cxd4 {[%clk 0:02:29.7]} 12. Nd6+ {[%clk 0:02:03.2]} 12... Bxd6 {[%clk
0:02:29.2]} 13. Qxb6 {[%clk 0:02:03.2]} 13... Rc8 {[%clk 0:01:32.8]} 14. exd6
{[%clk 0:02:00.9]} 14... dxc3 {[%clk 0:01:33.1]} 15. Ne5 {[%clk 0:01:46.6]}
15... cxb2 {[%clk 0:01:27.8]} 16. Bxb2 {[%clk 0:01:39]} 1-0

[Event "*** Titled Tuesday Blitz"]
[Site "Chess.com"]
[Date "2021.02.02"]
[Round "1"]
[White "Beca95"]
[Black "Logman74"]
[Result "1-0"]
[WhiteElo "2892"]
[BlackElo "2456"]
[TimeControl "180+1"]
[EndTime "10:04:13 PST"]
[Termination "Beca95 won by checkmate"]

1. c4 {[%clk 0:03:00.9]} 1... Nf6 {[%clk 0:02:57.9]} 2. Nc3 {[%clk 0:03:00.7]}
2... g6 {[%clk 0:02:57.5]} 3. e4 {[%clk 0:02:58.2]} 3... d6 {[%clk 0:02:56.9]}
4. d4 {[%clk 0:02:58.1]} 4... Bg7 {[%clk 0:02:57.6]} 5. h3 {[%clk 0:02:57.5]}
5... O-O {[%clk 0:02:58.3]} 6. Be3 {[%clk 0:02:57.2]} 6... e5 {[%clk 0:02:58.2]}
7. d5 {[%clk 0:02:56.7]} 7... a5 {[%clk 0:02:58.3]} 8. g4 {[%clk 0:02:56.6]}
8... Nfd7 {[%clk 0:02:56.8]} 9. Nge2 {[%clk 0:02:55.8]} 9... Na6 {[%clk
0:02:56.2]} 10. Ng3 {[%clk 0:02:55.6]} 10... Ndc5 {[%clk 0:02:54.4]} 11. h4
{[%clk 0:02:53.7]} 11... f5 {[%clk 0:02:26.6]} 12. gxf5 {[%clk 0:02:52]} 12...
gxf5 {[%clk 0:02:26.4]} 13. Nh5 {[%clk 0:02:42.6]} 13... Rf7 {[%clk 0:02:14]}
14. Bg5 {[%clk 0:02:37.4]} 14... Qe8 {[%clk 0:02:10.1]} 15. Rg1 {[%clk
0:02:37.5]} 15... Kh8 {[%clk 0:01:35.8]} 16. Nxg7 {[%clk 0:02:34.3]} 16... Kxg7
{[%clk 0:01:35.7]} 17. Qh5 {[%clk 0:02:33.4]} 17... Nxe4 {[%clk 0:00:32.3]} 18.
Nxe4 {[%clk 0:02:31.5]} 18... fxe4 {[%clk 0:00:31.9]} 19. Bf6+ {[%clk
0:02:29.2]} 19... Kxf6 {[%clk 0:00:12.1]} 20. Qg5# {[%clk 0:02:28.9]} 1-0

[Event "*** Titled Tuesday Blitz"]
[Site "Chess.com"]
[Date "2021.02.02"]
[Round "1"]
[White "IngOscarArdila"]
[Black "sergeikim"]
[Result "1-0"]
[WhiteElo "2232"]
[BlackElo "2522"]
[TimeControl "180+1"]
[EndTime "10:04:13 PST"]
[Termination "IngOscarArdila won by resignation"]

1. d4 {[%clk 0:02:59.7]} 1... Nf6 {[%clk 0:02:59.3]} 2. c4 {[%clk 0:02:59.7]}
2... g6 {[%clk 0:02:59.5]} 3. Nc3 {[%clk 0:02:59.8]} 3... Bg7 {[%clk 0:02:59.6]}
4. e4 {[%clk 0:03:00.3]} 4... d6 {[%clk 0:02:59.8]} 5. Nf3 {[%clk 0:03:00.6]}
5... O-O {[%clk 0:02:59.3]} 6. Be2 {[%clk 0:03:01]} 6... e5 {[%clk 0:02:59.2]}
7. d5 {[%clk 0:03:01]} 7... Nh5 {[%clk 0:02:57.9]} 8. g3 {[%clk 0:02:55.5]} 8...
a5 {[%clk 0:02:56.7]} 9. O-O {[%clk 0:02:54.5]} 9... Bh3 {[%clk 0:02:54.4]} 10.
Re1 {[%clk 0:02:53.7]} 10... h6 {[%clk 0:02:54.4]} 11. Nh4 {[%clk 0:02:51.5]}
11... Nf4 {[%clk 0:02:52.3]} 12. Bf3 {[%clk 0:02:38.7]} 12... Na6 {[%clk
0:02:47.3]} 13. Ng2 {[%clk 0:02:37.9]} 13... Nxg2 {[%clk 0:02:39.4]} 14. Bxg2
{[%clk 0:02:38]} 14... Qd7 {[%clk 0:02:39.5]} 15. Be3 {[%clk 0:02:32.8]} 15...
Bxg2 {[%clk 0:02:34.4]} 16. Kxg2 {[%clk 0:02:32.6]} 16... f5 {[%clk 0:02:34.3]}
17. exf5 {[%clk 0:02:32.1]} 17... gxf5 {[%clk 0:02:33.2]} 18. Qh5 {[%clk
0:02:31.6]} 18... Qf7 {[%clk 0:02:23.1]} 19. Qxf7+ {[%clk 0:02:29.5]} 19... Rxf7
{[%clk 0:02:22.7]} 20. f4 {[%clk 0:02:29]} 20... exf4 {[%clk 0:02:15.9]} 21.
Bxf4 {[%clk 0:02:28.3]} 21... Bxc3 {[%clk 0:02:15.3]} 22. bxc3 {[%clk
0:02:27.9]} 22... Nc5 {[%clk 0:02:13.1]} 23. Bxh6 {[%clk 0:02:26.7]} 23... Ne4
{[%clk 0:02:12.6]} 24. Re3 {[%clk 0:02:22.1]} 24... b6 {[%clk 0:02:05.4]} 25.
Rf1 {[%clk 0:02:20.6]} 25... Nd2 {[%clk 0:02:00.3]} 26. Rf4 {[%clk 0:02:19]}
26... a4 {[%clk 0:01:48.1]} 27. g4 {[%clk 0:01:58.3]} 27... fxg4 {[%clk
0:01:45.8]} 28. Rxg4+ {[%clk 0:01:56.6]} 28... Kh8 {[%clk 0:01:36]} 29. Rh3
{[%clk 0:01:56.3]} 29... Rh7 {[%clk 0:01:28.1]} 30. Bxd2 {[%clk 0:01:45.3]} 1-0